{"text_format":"1","workbook":"xlsx","n_sheets":5,"sheets":["عرض السنوات والشهور","الأجازات","قائمة الموظفين","أنواع الإجازات","عطلات الشركة"],"not_rendered":{"charts":0,"images":1,"macros":1,"external_links":0,"defined_names":9,"comments":0,"pivot_tables":0},"unopened":[],"bounds":{"document_bytes":16777216,"sheet_cells":100000,"rows_first":2000,"rows_last":500,"rows_between":2000,"halvings":0,"cell_chars":16384,"cell_head_chars":4096},"cells_cut":0,"cells_raw":0,"read":"whole","date_system":"1900"}

{"sheet":"عرض السنوات والشهور","index":0,"n_rows":23,"n_cols":34,"rows_kept":23,"cut":false,"hidden":false,"merged":[[22,2,30,11],[1,2,1,6],[2,4,2,6],[10,2,10,4],[10,7,10,10],[10,13,10,15],[10,23,10,25],[10,28,10,30],[10,33,10,35],[11,2,11,4],[11,7,11,10],[11,13,11,15],[11,18,11,20],[11,23,11,25],[11,28,11,30],[11,33,11,35],[10,18,10,20],[12,33,12,35],[13,2,13,4],[13,7,13,10],[13,13,13,15],[13,18,13,20],[13,23,13,25],[13,28,13,30],[13,33,13,35],[12,2,12,4],[12,7,12,10],[12,13,12,15],[12,18,12,20],[12,23,12,25],[12,28,12,30],[16,13,16,15],[16,18,16,20],[16,23,16,25],[16,28,16,30],[16,33,16,35],[15,13,15,15],[15,18,15,20],[15,23,15,25],[15,28,15,30],[15,33,15,35],[18,13,18,15],[18,18,18,20],[18,23,18,25],[18,28,18,30],[18,33,18,35],[17,13,17,15],[17,18,17,20],[17,23,17,25],[17,28,17,30],[17,33,17,35]]}
[null,"سجل حضور الموظف",null,null,null,null,null,null,null,null,null,null,null,null,null,null,null,null,null,null,null,null,null,null,null,null,"السبت"]
[null,"حدد موظفاً:","الموظف 3",null,null,null,null,"Day1","Day2",null,null,null,null,null,null,null,null,null,null,null,null,null,null,null,null,null,"الأحد"]
[null,"أدخل الشهر و السنة:","Year",2017,12,null,null,null,null,null,null,null,null,{"$f":"$C$2","v":"الموظف 3"},null,null,null,null,null,null,null,null,null,null,null,null,"الإثنين"]
[null,null,null,null,null,null,null,null,null,null,null,null,null,null,null,null,null,null,null,null,null,null,null,null,null,null,"الثلاثاء"]
[]
[null,null,"الجمعة","السّبت","الأحد","الإثنين","الثلاثاء","الأربعاء","الخميس","الجمعة","السّبت","الأحد","الإثنين","الثلاثاء","الأربعاء","الخميس","الجمعة","السّبت","الأحد","الإثنين","الثلاثاء","الأربعاء","الخميس","الجمعة","السّبت","الأحد","الإثنين","الثلاثاء","الأربعاء","الخميس","الجمعة","السّبت","الأحد"]
[null,null,"2017-12-01","2017-12-02","2017-12-03","2017-12-04","2017-12-05","2017-12-06","2017-12-07","2017-12-08","2017-12-09","2017-12-10","2017-12-11","2017-12-12","2017-12-13","2017-12-14","2017-12-15","2017-12-16","2017-12-17","2017-12-18","2017-12-19","2017-12-20","2017-12-21","2017-12-22","2017-12-23","2017-12-24","2017-12-25","2017-12-26","2017-12-27","2017-12-28","2017-12-29","2017-12-30","2017-12-31"]
[null,null,{"$f":"IF(ISERROR(INDEX(الأجازات!$B$4:$E$26,SMALL(IF(($N$3=الأجازات!$B$4:$B$26)*(#REF!=الأجازات!$C$4:$D$26),ROW(الأجازات!$B$4:$E$26)-MIN(ROW(الأجازات!$B$4:$E$26))+1,\"\"),ROW(A2)),COLUMN(A2))),\"\",INDEX(الأجازات!$B$4:$E$26,SMALL(IF(($N$3=الأجازات!$B$4:$B$26)*(#REF!=الأجازات!$C$4:$D$26),ROW(الأجازات!$B$4:$E$26)-MIN(ROW(الأجازات!$B$4:$E$26))+1,\"\"),ROW(A2)),COLUMN(A2)))","v":""},{"$f":"IF(ISERROR(INDEX(الأجازات!$B$4:$E$26,SMALL(IF(($N$3=الأجازات!$B$4:$B$26)*(#REF!=الأجازات!$C$4:$D$26),ROW(الأجازات!$B$4:$E$26)-MIN(ROW(الأجازات!$B$4:$E$26))+1,\"\"),ROW(B2)),COLUMN(B2))),\"\",INDEX(الأجازات!$B$4:$E$26,SMALL(IF(($N$3=الأجازات!$B$4:$B$26)*(#REF!=الأجازات!$C$4:$D$26),ROW(الأجازات!$B$4:$E$26)-MIN(ROW(الأجازات!$B$4:$E$26))+1,\"\"),ROW(B2)),COLUMN(B2)))","v":""},{"$f":"IF(ISERROR(INDEX(الأجازات!$B$4:$E$26,SMALL(IF(($N$3=الأجازات!$B$4:$B$26)*(#REF!=الأجازات!$C$4:$D$26),ROW(الأجازات!$B$4:$E$26)-MIN(ROW(الأجازات!$B$4:$E$26))+1,\"\"),ROW(C2)),COLUMN(C2))),\"\",INDEX(الأجازات!$B$4:$E$26,SMALL(IF(($N$3=الأجازات!$B$4:$B$26)*(#REF!=الأجازات!$C$4:$D$26),ROW(الأجازات!$B$4:$E$26)-MIN(ROW(الأجازات!$B$4:$E$26))+1,\"\"),ROW(C2)),COLUMN(C2)))","v":""},{"$f":"IF(ISERROR(INDEX(الأجازات!$B$4:$E$26,SMALL(IF(($N$3=الأجازات!$B$4:$B$26)*(#REF!=الأجازات!$C$4:$D$26),ROW(الأجازات!$B$4:$E$26)-MIN(ROW(الأجازات!$B$4:$E$26))+1,\"\"),ROW(D2)),COLUMN(D2))),\"\",INDEX(الأجازات!$B$4:$E$26,SMALL(IF(($N$3=الأجازات!$B$4:$B$26)*(#REF!=الأجازات!$C$4:$D$26),ROW(الأجازات!$B$4:$E$26)-MIN(ROW(الأجازات!$B$4:$E$26))+1,\"\"),ROW(D2)),COLUMN(D2)))","v":""},{"$f":"IF(ISERROR(INDEX(الأجازات!$B$4:$E$26,SMALL(IF(($N$3=الأجازات!$B$4:$B$26)*(#REF!=الأجازات!$C$4:$D$26),ROW(الأجازات!$B$4:$E$26)-MIN(ROW(الأجازات!$B$4:$E$26))+1,\"\"),ROW(E2)),COLUMN(E2))),\"\",INDEX(الأجازات!$B$4:$E$26,SMALL(IF(($N$3=الأجازات!$B$4:$B$26)*(#REF!=الأجازات!$C$4:$D$26),ROW(الأجازات!$B$4:$E$26)-MIN(ROW(الأجازات!$B$4:$E$26))+1,\"\"),ROW(E2)),COLUMN(E2)))","v":""},{"$f":"IF(ISERROR(INDEX(الأجازات!$B$4:$E$26,SMALL(IF(($N$3=الأجازات!$B$4:$B$26)*(#REF!=الأجازات!$C$4:$D$26),ROW(الأجازات!$B$4:$E$26)-MIN(ROW(الأجازات!$B$4:$E$26))+1,\"\"),ROW(F2)),COLUMN(F2))),\"\",INDEX(الأجازات!$B$4:$E$26,SMALL(IF(($N$3=الأجازات!$B$4:$B$26)*(#REF!=الأجازات!$C$4:$D$26),ROW(الأجازات!$B$4:$E$26)-MIN(ROW(الأجازات!$B$4:$E$26))+1,\"\"),ROW(F2)),COLUMN(F2)))","v":""},{"$f":"IF(ISERROR(INDEX(الأجازات!$B$4:$E$26,SMALL(IF(($N$3=الأجازات!$B$4:$B$26)*(#REF!=الأجازات!$C$4:$D$26),ROW(الأجازات!$B$4:$E$26)-MIN(ROW(الأجازات!$B$4:$E$26))+1,\"\"),ROW(G2)),COLUMN(G2))),\"\",INDEX(الأجازات!$B$4:$E$26,SMALL(IF(($N$3=الأجازات!$B$4:$B$26)*(#REF!=الأجازات!$C$4:$D$26),ROW(الأجازات!$B$4:$E$26)-MIN(ROW(الأجازات!$B$4:$E$26))+1,\"\"),ROW(G2)),COLUMN(G2)))","v":""},{"$f":"IF(ISERROR(INDEX(الأجازات!$B$4:$E$26,SMALL(IF(($N$3=الأجازات!$B$4:$B$26)*(#REF!=الأجازات!$C$4:$D$26),ROW(الأجازات!$B$4:$E$26)-MIN(ROW(الأجازات!$B$4:$E$26))+1,\"\"),ROW(H2)),COLUMN(H2))),\"\",INDEX(الأجازات!$B$4:$E$26,SMALL(IF(($N$3=الأجازات!$B$4:$B$26)*(#REF!=الأجازات!$C$4:$D$26),ROW(الأجازات!$B$4:$E$26)-MIN(ROW(الأجازات!$B$4:$E$26))+1,\"\"),ROW(H2)),COLUMN(H2)))","v":""},{"$f":"IF(ISERROR(INDEX(الأجازات!$B$4:$E$26,SMALL(IF(($N$3=الأجازات!$B$4:$B$26)*(#REF!=الأجازات!$C$4:$D$26),ROW(الأجازات!$B$4:$E$26)-MIN(ROW(الأجازات!$B$4:$E$26))+1,\"\"),ROW(I2)),COLUMN(I2))),\"\",INDEX(الأجازات!$B$4:$E$26,SMALL(IF(($N$3=الأجازات!$B$4:$B$26)*(#REF!=الأجازات!$C$4:$D$26),ROW(الأجازات!$B$4:$E$26)-MIN(ROW(الأجازات!$B$4:$E$26))+1,\"\"),ROW(I2)),COLUMN(I2)))","v":""},{"$f":"IF(ISERROR(INDEX(الأجازات!$B$4:$E$26,SMALL(IF(($N$3=الأجازات!$B$4:$B$26)*(#REF!=الأجازات!$C$4:$D$26),ROW(الأجازات!$B$4:$E$26)-MIN(ROW(الأجازات!$B$4:$E$26))+1,\"\"),ROW(J2)),COLUMN(J2))),\"\",INDEX(الأجازات!$B$4:$E$26,SMALL(IF(($N$3=الأجازات!$B$4:$B$26)*(#REF!=الأجازات!$C$4:$D$26),ROW(الأجازات!$B$4:$E$26)-MIN(ROW(الأجازات!$B$4:$E$26))+1,\"\"),ROW(J2)),COLUMN(J2)))","v":""},{"$f":"IF(ISERROR(INDEX(الأجازات!$B$4:$E$26,SMALL(IF(($N$3=الأجازات!$B$4:$B$26)*(#REF!=الأجازات!$C$4:$D$26),ROW(الأجازات!$B$4:$E$26)-MIN(ROW(الأجازات!$B$4:$E$26))+1,\"\"),ROW(K2)),COLUMN(K2))),\"\",INDEX(الأجازات!$B$4:$E$26,SMALL(IF(($N$3=الأجازات!$B$4:$B$26)*(#REF!=الأجازات!$C$4:$D$26),ROW(الأجازات!$B$4:$E$26)-MIN(ROW(الأجازات!$B$4:$E$26))+1,\"\"),ROW(K2)),COLUMN(K2)))","v":""},{"$f":"IF(ISERROR(INDEX(الأجازات!$B$4:$E$26,SMALL(IF(($N$3=الأجازات!$B$4:$B$26)*(#REF!=الأجازات!$C$4:$D$26),ROW(الأجازات!$B$4:$E$26)-MIN(ROW(الأجازات!$B$4:$E$26))+1,\"\"),ROW(L2)),COLUMN(L2))),\"\",INDEX(الأجازات!$B$4:$E$26,SMALL(IF(($N$3=الأجازات!$B$4:$B$26)*(#REF!=الأجازات!$C$4:$D$26),ROW(الأجازات!$B$4:$E$26)-MIN(ROW(الأجازات!$B$4:$E$26))+1,\"\"),ROW(L2)),COLUMN(L2)))","v":""},{"$f":"IF(ISERROR(INDEX(الأجازات!$B$4:$E$26,SMALL(IF(($N$3=الأجازات!$B$4:$B$26)*(#REF!=الأجازات!$C$4:$D$26),ROW(الأجازات!$B$4:$E$26)-MIN(ROW(الأجازات!$B$4:$E$26))+1,\"\"),ROW(M2)),COLUMN(M2))),\"\",INDEX(الأجازات!$B$4:$E$26,SMALL(IF(($N$3=الأجازات!$B$4:$B$26)*(#REF!=الأجازات!$C$4:$D$26),ROW(الأجازات!$B$4:$E$26)-MIN(ROW(الأجازات!$B$4:$E$26))+1,\"\"),ROW(M2)),COLUMN(M2)))","v":""},{"$f":"IF(ISERROR(INDEX(الأجازات!$B$4:$E$26,SMALL(IF(($N$3=الأجازات!$B$4:$B$26)*(#REF!=الأجازات!$C$4:$D$26),ROW(الأجازات!$B$4:$E$26)-MIN(ROW(الأجازات!$B$4:$E$26))+1,\"\"),ROW(N2)),COLUMN(N2))),\"\",INDEX(الأجازات!$B$4:$E$26,SMALL(IF(($N$3=الأجازات!$B$4:$B$26)*(#REF!=الأجازات!$C$4:$D$26),ROW(الأجازات!$B$4:$E$26)-MIN(ROW(الأجازات!$B$4:$E$26))+1,\"\"),ROW(N2)),COLUMN(N2)))","v":""},{"$f":"IF(ISERROR(INDEX(الأجازات!$B$4:$E$26,SMALL(IF(($N$3=الأجازات!$B$4:$B$26)*(#REF!=الأجازات!$C$4:$D$26),ROW(الأجازات!$B$4:$E$26)-MIN(ROW(الأجازات!$B$4:$E$26))+1,\"\"),ROW(O2)),COLUMN(O2))),\"\",INDEX(الأجازات!$B$4:$E$26,SMALL(IF(($N$3=الأجازات!$B$4:$B$26)*(#REF!=الأجازات!$C$4:$D$26),ROW(الأجازات!$B$4:$E$26)-MIN(ROW(الأجازات!$B$4:$E$26))+1,\"\"),ROW(O2)),COLUMN(O2)))","v":""},{"$f":"IF(ISERROR(INDEX(الأجازات!$B$4:$E$26,SMALL(IF(($N$3=الأجازات!$B$4:$B$26)*(#REF!=الأجازات!$C$4:$D$26),ROW(الأجازات!$B$4:$E$26)-MIN(ROW(الأجازات!$B$4:$E$26))+1,\"\"),ROW(P2)),COLUMN(P2))),\"\",INDEX(الأجازات!$B$4:$E$26,SMALL(IF(($N$3=الأجازات!$B$4:$B$26)*(#REF!=الأجازات!$C$4:$D$26),ROW(الأجازات!$B$4:$E$26)-MIN(ROW(الأجازات!$B$4:$E$26))+1,\"\"),ROW(P2)),COLUMN(P2)))","v":""},{"$f":"IF(ISERROR(INDEX(الأجازات!$B$4:$E$26,SMALL(IF(($N$3=الأجازات!$B$4:$B$26)*(#REF!=الأجازات!$C$4:$D$26),ROW(الأجازات!$B$4:$E$26)-MIN(ROW(الأجازات!$B$4:$E$26))+1,\"\"),ROW(Q2)),COLUMN(Q2))),\"\",INDEX(الأجازات!$B$4:$E$26,SMALL(IF(($N$3=الأجازات!$B$4:$B$26)*(#REF!=الأجازات!$C$4:$D$26),ROW(الأجازات!$B$4:$E$26)-MIN(ROW(الأجازات!$B$4:$E$26))+1,\"\"),ROW(Q2)),COLUMN(Q2)))","v":""},{"$f":"IF(ISERROR(INDEX(الأجازات!$B$4:$E$26,SMALL(IF(($N$3=الأجازات!$B$4:$B$26)*(#REF!=الأجازات!$C$4:$D$26),ROW(الأجازات!$B$4:$E$26)-MIN(ROW(الأجازات!$B$4:$E$26))+1,\"\"),ROW(R2)),COLUMN(R2))),\"\",INDEX(الأجازات!$B$4:$E$26,SMALL(IF(($N$3=الأجازات!$B$4:$B$26)*(#REF!=الأجازات!$C$4:$D$26),ROW(الأجازات!$B$4:$E$26)-MIN(ROW(الأجازات!$B$4:$E$26))+1,\"\"),ROW(R2)),COLUMN(R2)))","v":""},{"$f":"IF(ISERROR(INDEX(الأجازات!$B$4:$E$26,SMALL(IF(($N$3=الأجازات!$B$4:$B$26)*(#REF!=الأجازات!$C$4:$D$26),ROW(الأجازات!$B$4:$E$26)-MIN(ROW(الأجازات!$B$4:$E$26))+1,\"\"),ROW(S2)),COLUMN(S2))),\"\",INDEX(الأجازات!$B$4:$E$26,SMALL(IF(($N$3=الأجازات!$B$4:$B$26)*(#REF!=الأجازات!$C$4:$D$26),ROW(الأجازات!$B$4:$E$26)-MIN(ROW(الأجازات!$B$4:$E$26))+1,\"\"),ROW(S2)),COLUMN(S2)))","v":""},{"$f":"IF(ISERROR(INDEX(الأجازات!$B$4:$E$26,SMALL(IF(($N$3=الأجازات!$B$4:$B$26)*(#REF!=الأجازات!$C$4:$D$26),ROW(الأجازات!$B$4:$E$26)-MIN(ROW(الأجازات!$B$4:$E$26))+1,\"\"),ROW(T2)),COLUMN(T2))),\"\",INDEX(الأجازات!$B$4:$E$26,SMALL(IF(($N$3=الأجازات!$B$4:$B$26)*(#REF!=الأجازات!$C$4:$D$26),ROW(الأجازات!$B$4:$E$26)-MIN(ROW(الأجازات!$B$4:$E$26))+1,\"\"),ROW(T2)),COLUMN(T2)))","v":""},{"$f":"IF(ISERROR(INDEX(الأجازات!$B$4:$E$26,SMALL(IF(($N$3=الأجازات!$B$4:$B$26)*(#REF!=الأجازات!$C$4:$D$26),ROW(الأجازات!$B$4:$E$26)-MIN(ROW(الأجازات!$B$4:$E$26))+1,\"\"),ROW(U2)),COLUMN(U2))),\"\",INDEX(الأجازات!$B$4:$E$26,SMALL(IF(($N$3=الأجازات!$B$4:$B$26)*(#REF!=الأجازات!$C$4:$D$26),ROW(الأجازات!$B$4:$E$26)-MIN(ROW(الأجازات!$B$4:$E$26))+1,\"\"),ROW(U2)),COLUMN(U2)))","v":""}]
[]
[null,"الإحصاءات الرئيسية"]
[null,null,"أيام الإجازة",null,null,null,null,"أيام العمل",null,null,null,null,null,"عدد الأيام المرضية",null,null,null,null,"عادية",null,null,null,null,"حداد",null,null,null,null,"غياب",null,null,null,null,"تأخير"]
[null,null,null,null,null,null,null,{"$f":"NETWORKDAYS(DATE(Calendar_Year,1,1),EDATE(DATE(Calendar_Year,1,1),12)-1)","v":{"$error":"#NAME?"}},null,null,null,null,null,{"$f":"SUMIFS(LeaveTracker[الأيام],LeaveTracker[اسم الموظف],valSelEmployee,LeaveTracker[تاريخ البداية],\">=\"&DATE(Calendar_Year,1,1),LeaveTracker[تاريخ النهاية],\"<\"&DATE(Calendar_Year+1,1,1),LeaveTracker[نوع الإجازة],'أنواع الإجازات'!B4)","v":0},null,null,null,null,{"$f":"SUMIFS(LeaveTracker[الأيام],LeaveTracker[اسم الموظف],valSelEmployee,LeaveTracker[تاريخ البداية],\">=\"&DATE(Calendar_Year,1,1),LeaveTracker[تاريخ النهاية],\"<\"&DATE(Calendar_Year+1,1,1),LeaveTracker[نوع الإجازة],'أنواع الإجازات'!B5)","v":0},null,null,null,null,{"$f":"SUMIFS(LeaveTracker[الأيام],LeaveTracker[اسم الموظف],valSelEmployee,LeaveTracker[تاريخ البداية],\">=\"&DATE(Calendar_Year,1,1),LeaveTracker[تاريخ النهاية],\"<\"&DATE(Calendar_Year+1,1,1),LeaveTracker[نوع الإجازة],'أنواع الإجازات'!B6)","v":0},null,null,null,null,{"$f":"SUMIFS(LeaveTracker[الأيام],LeaveTracker[اسم الموظف],valSelEmployee,LeaveTracker[تاريخ البداية],\">=\"&DATE(Calendar_Year,1,1),LeaveTracker[تاريخ النهاية],\"<\"&DATE(Calendar_Year+1,1,1),LeaveTracker[نوع الإجازة],'أنواع الإجازات'!B7)","v":0},null,null,null,null,{"$f":"SUMIFS(LeaveTracker[اسم الموظف],LeaveTracker[تاريخ البداية],valSelEmployee,LeaveTracker[تاريخ النهاية],\">=\"&DATE(Calendar_Year,1,1),LeaveTracker[نوع الإجازة],\"<\"&DATE(Calendar_Year+1,1,1),LeaveTracker[الأيام],'أنواع الإجازات'!G7)","v":0}]
[null,null,{"$f":"SUMIFS(LeaveTracker[الأيام],LeaveTracker[اسم الموظف],valSelEmployee,LeaveTracker[تاريخ البداية],\">=\"&DATE(Calendar_Year-1,1,1),LeaveTracker[تاريخ النهاية],\"<\"&DATE(Calendar_Year,1,1))","v":0},null,null,null,null,{"$f":"NETWORKDAYS(DATE(Calendar_Year-1,1,1),EDATE(DATE(Calendar_Year-1,1,1),12)-1)","v":{"$error":"#NAME?"}},null,null,null,null,null,{"$f":"SUMIFS(LeaveTracker[الأيام],LeaveTracker[اسم الموظف],valSelEmployee,LeaveTracker[تاريخ البداية],\">=\"&DATE(Calendar_Year-1,1,1),LeaveTracker[تاريخ النهاية],\"<\"&DATE(Calendar_Year,1,1),LeaveTracker[نوع الإجازة],'أنواع الإجازات'!B4)","v":0},null,null,null,null,{"$f":"SUMIFS(LeaveTracker[الأيام],LeaveTracker[اسم الموظف],valSelEmployee,LeaveTracker[تاريخ البداية],\">=\"&DATE(Calendar_Year-1,1,1),LeaveTracker[تاريخ النهاية],\"<\"&DATE(Calendar_Year,1,1),LeaveTracker[نوع الإجازة],'أنواع الإجازات'!B5)","v":0},null,null,null,null,{"$f":"SUMIFS(LeaveTracker[الأيام],LeaveTracker[اسم الموظف],valSelEmployee,LeaveTracker[تاريخ البداية],\">=\"&DATE(Calendar_Year-1,1,1),LeaveTracker[تاريخ النهاية],\"<\"&DATE(Calendar_Year,1,1),LeaveTracker[نوع الإجازة],'أنواع الإجازات'!B6)","v":0},null,null,null,null,{"$f":"SUMIFS(LeaveTracker[الأيام],LeaveTracker[اسم الموظف],valSelEmployee,LeaveTracker[تاريخ البداية],\">=\"&DATE(Calendar_Year-1,1,1),LeaveTracker[تاريخ النهاية],\"<\"&DATE(Calendar_Year,1,1),LeaveTracker[نوع الإجازة],'أنواع الإجازات'!B7)","v":0},null,null,null,null,{"$f":"SUMIFS(LeaveTracker[اسم الموظف],LeaveTracker[تاريخ البداية],valSelEmployee,LeaveTracker[تاريخ النهاية],\">=\"&DATE(Calendar_Year-1,1,1),LeaveTracker[نوع الإجازة],\"<\"&DATE(Calendar_Year,1,1),LeaveTracker[الأيام],'أنواع الإجازات'!G7)","v":0}]
[null,null,{"$f":"IFERROR(IF(C13<>0,IF(C12>=C13,\"زيادة \", \"أقل \")&TEXT(C12/C13-1,\"0%;0%\"),\"زيادة 100%\"),\"\")","v":"زيادة 100%"},null,null,null,null,{"$f":"IFERROR(IF(H13<>0,IF(H12>=H13,\"زيادة \", \"أقل \")&TEXT(H12/H13-1,\"0%;0%\"),\"زيادة 100%\"),\"\")","v":""},null,null,null,null,null,{"$f":"IFERROR(IF(N13<>0,IF(N12>=N13,\"زيادة \", \"أقل \")&TEXT(N12/N13-1,\"0%;0%\"),\"زيادة 100%\"),\"\")","v":"زيادة 100%"},null,null,null,null,{"$f":"IFERROR(IF(S13<>0,IF(S12>=S13,\"زيادة \", \"أقل \")&TEXT(S12/S13-1,\"0%;0%\"),\"زيادة 100%\"),\"\")","v":"زيادة 100%"},null,null,null,null,{"$f":"IFERROR(IF(X13<>0,IF(X12>=X13,\"زيادة \", \"أقل \")&TEXT(X12/X13-1,\"0%;0%\"),\"زيادة 100%\"),\"\")","v":"زيادة 100%"},null,null,null,null,{"$f":"IFERROR(IF(AC13<>0,IF(AC12>=AC13,\"زيادة \", \"أقل \")&TEXT(AC12/AC13-1,\"0%;0%\"),\"زيادة 100%\"),\"\")","v":"زيادة 100%"},null,null,null,null,{"$f":"IFERROR(IF(AH13<>0,IF(AH12>=AH13,\"زيادة \", \"أقل \")&TEXT(AH12/AH13-1,\"0%;0%\"),\"زيادة 100%\"),\"\")","v":"زيادة 100%"}]
[]
[null,null,null,null,null,null,null,null,null,null,null,null,null,"استئذان",null,null,null,null,"مرافق",null,null,null,null,"استثناء",null,null,null,null,"طارئة",null,null,null,null,"تبديل"]
[null,null,null,null,null,null,null,null,null,null,null,null,null,{"$f":"SUMIFS(LeaveTracker[الأيام],LeaveTracker[اسم الموظف],valSelEmployee,LeaveTracker[تاريخ البداية],\">=\"&DATE(Calendar_Year,1,1),LeaveTracker[تاريخ النهاية],\"<\"&DATE(Calendar_Year+1,1,1),LeaveTracker[نوع الإجازة],'أنواع الإجازات'!B8)","v":0},null,null,null,null,{"$f":"SUMIFS(LeaveTracker[الأيام],LeaveTracker[اسم الموظف],valSelEmployee,LeaveTracker[تاريخ البداية],\">=\"&DATE(Calendar_Year,1,1),LeaveTracker[تاريخ النهاية],\"<\"&DATE(Calendar_Year+1,1,1),LeaveTracker[نوع الإجازة],'أنواع الإجازات'!B9)","v":0},null,null,null,null,{"$f":"SUMIFS(LeaveTracker[الأيام],LeaveTracker[اسم الموظف],valSelEmployee,LeaveTracker[تاريخ البداية],\">=\"&DATE(Calendar_Year,1,1),LeaveTracker[تاريخ النهاية],\"<\"&DATE(Calendar_Year+1,1,1),LeaveTracker[نوع الإجازة],'أنواع الإجازات'!B10)","v":0},null,null,null,null,{"$f":"SUMIFS(LeaveTracker[الأيام],LeaveTracker[اسم الموظف],valSelEmployee,LeaveTracker[تاريخ البداية],\">=\"&DATE(Calendar_Year,1,1),LeaveTracker[تاريخ النهاية],\"<\"&DATE(Calendar_Year+1,1,1),LeaveTracker[نوع الإجازة],'أنواع الإجازات'!B11)","v":0},null,null,null,null,{"$f":"SUMIFS(LeaveTracker[اسم الموظف],LeaveTracker[تاريخ البداية],valSelEmployee,LeaveTracker[تاريخ النهاية],\">=\"&DATE(Calendar_Year,1,1),LeaveTracker[نوع الإجازة],\"<\"&DATE(Calendar_Year+1,1,1),LeaveTracker[الأيام],'أنواع الإجازات'!G11)","v":0}]
[null,null,null,null,null,null,null,null,null,null,null,null,null,{"$f":"SUMIFS(LeaveTracker[الأيام],LeaveTracker[اسم الموظف],valSelEmployee,LeaveTracker[تاريخ البداية],\">=\"&DATE(Calendar_Year-1,1,1),LeaveTracker[تاريخ النهاية],\"<\"&DATE(Calendar_Year,1,1),LeaveTracker[نوع الإجازة],'أنواع الإجازات'!B8)","v":0},null,null,null,null,{"$f":"SUMIFS(LeaveTracker[الأيام],LeaveTracker[اسم الموظف],valSelEmployee,LeaveTracker[تاريخ البداية],\">=\"&DATE(Calendar_Year-1,1,1),LeaveTracker[تاريخ النهاية],\"<\"&DATE(Calendar_Year,1,1),LeaveTracker[نوع الإجازة],'أنواع الإجازات'!B9)","v":0},null,null,null,null,{"$f":"SUMIFS(LeaveTracker[الأيام],LeaveTracker[اسم الموظف],valSelEmployee,LeaveTracker[تاريخ البداية],\">=\"&DATE(Calendar_Year-1,1,1),LeaveTracker[تاريخ النهاية],\"<\"&DATE(Calendar_Year,1,1),LeaveTracker[نوع الإجازة],'أنواع الإجازات'!B10)","v":0},null,null,null,null,{"$f":"SUMIFS(LeaveTracker[الأيام],LeaveTracker[اسم الموظف],valSelEmployee,LeaveTracker[تاريخ البداية],\">=\"&DATE(Calendar_Year-1,1,1),LeaveTracker[تاريخ النهاية],\"<\"&DATE(Calendar_Year,1,1),LeaveTracker[نوع الإجازة],'أنواع الإجازات'!B11)","v":0},null,null,null,null,{"$f":"SUMIFS(LeaveTracker[اسم الموظف],LeaveTracker[تاريخ البداية],valSelEmployee,LeaveTracker[تاريخ النهاية],\">=\"&DATE(Calendar_Year-1,1,1),LeaveTracker[نوع الإجازة],\"<\"&DATE(Calendar_Year,1,1),LeaveTracker[الأيام],'أنواع الإجازات'!G11)","v":0}]
[null,null,null,null,null,null,null,null,null,null,null,null,null,{"$f":"IFERROR(IF(N18<>0,IF(N17>=N18,\"زيادة \", \"أقل \")&TEXT(N17/N18-1,\"0%;0%\"),\"زيادة 100%\"),\"\")","v":"زيادة 100%"},null,null,null,null,{"$f":"IFERROR(IF(S18<>0,IF(S17>=S18,\"زيادة \", \"أقل \")&TEXT(S17/S18-1,\"0%;0%\"),\"زيادة 100%\"),\"\")","v":"زيادة 100%"},null,null,null,null,{"$f":"IFERROR(IF(X18<>0,IF(X17>=X18,\"زيادة \", \"أقل \")&TEXT(X17/X18-1,\"0%;0%\"),\"زيادة 100%\"),\"\")","v":"زيادة 100%"},null,null,null,null,{"$f":"IFERROR(IF(AC18<>0,IF(AC17>=AC18,\"زيادة \", \"أقل \")&TEXT(AC17/AC18-1,\"0%;0%\"),\"زيادة 100%\"),\"\")","v":"زيادة 100%"},null,null,null,null,{"$f":"IFERROR(IF(AH18<>0,IF(AH17>=AH18,\"زيادة \", \"أقل \")&TEXT(AH17/AH18-1,\"0%;0%\"),\"زيادة 100%\"),\"\")","v":"زيادة 100%"}]
[]
[]
[]
[null,null,"أريد المساعدة فى تصحيح هذه المعادلة فى جلب الأجازات من صفحة الأجازات \nمن عمود نوع الأجازة -وذلك بناءاً على اسم الموظف فى الخلية C2 والتاريخ من  C7 الى أخر تاريخ \n\nوذلك بما يتساوى مع أسماء الموظفين والتواريخ الموجودة فى صفحة الأجازات"]

{"sheet":"الأجازات","index":1,"n_rows":26,"n_cols":6,"rows_kept":26,"cut":false,"hidden":false,"merged":[]}
[null,"متعقب إجازات الموظفين"]
[]
[null,"اسم الموظف","تاريخ البداية","تاريخ النهاية","نوع الإجازة","الأيام"]
[null,"الموظف 1",{"$f":"DATE(YEAR(TODAY()),1,3)","v":"2018-01-03"},{"$f":"DATE(YEAR(TODAY()),1,3)","v":"2018-01-03"},"إجازة مرضية",{"$f":"NETWORKDAYS(LeaveTracker[[#This Row],[تاريخ البداية]],LeaveTracker[[#This Row],[تاريخ النهاية]],lstHolidays)","v":1}]
[null,"الموظف 2",{"$f":"DATE(YEAR(TODAY()),1,17)","v":"2018-01-17"},{"$f":"DATE(YEAR(TODAY()),1,18)","v":"2018-01-18"},"استئذان",{"$f":"NETWORKDAYS(LeaveTracker[[#This Row],[تاريخ البداية]],LeaveTracker[[#This Row],[تاريخ النهاية]],lstHolidays)","v":2}]
[null,"الموظف 3",{"$f":"DATE(YEAR(TODAY()),1,18 )","v":"2018-01-18"},{"$f":"DATE(YEAR(TODAY()),1,21)","v":"2018-01-21"},"أخرى",{"$f":"NETWORKDAYS(LeaveTracker[[#This Row],[تاريخ البداية]],LeaveTracker[[#This Row],[تاريخ النهاية]],lstHolidays)","v":2}]
[null,"الموظف 5",{"$f":"DATE(YEAR(TODAY())-1,12,10 )","v":"2017-12-10"},{"$f":"DATE(YEAR(TODAY())-1,12,16)","v":"2017-12-16"},"حداد",{"$f":"NETWORKDAYS(LeaveTracker[[#This Row],[تاريخ البداية]],LeaveTracker[[#This Row],[تاريخ النهاية]],lstHolidays)","v":5}]
[null,"الموظف 4",{"$f":"DATE(YEAR(TODAY())-1,12,1  )","v":"2017-12-01"},{"$f":"DATE(YEAR(TODAY())-1,12,2)","v":"2017-12-02"},"إجازة مرضية",{"$f":"NETWORKDAYS(LeaveTracker[[#This Row],[تاريخ البداية]],LeaveTracker[[#This Row],[تاريخ النهاية]],lstHolidays)","v":1}]
[null,"الموظف 1",{"$f":"DATE(YEAR(TODAY())-1,11,14  )","v":"2017-11-14"},{"$f":"DATE(YEAR(TODAY())-1,11,18)","v":"2017-11-18"},"العطلة",{"$f":"NETWORKDAYS(LeaveTracker[[#This Row],[تاريخ البداية]],LeaveTracker[[#This Row],[تاريخ النهاية]],lstHolidays)","v":4}]
[null,"الموظف 4",{"$f":"DATE(YEAR(TODAY()),1,31 )","v":"2018-01-31"},{"$f":"DATE(YEAR(TODAY()),2,4)","v":"2018-02-04"},"إجازة مرضية",{"$f":"NETWORKDAYS(LeaveTracker[[#This Row],[تاريخ البداية]],LeaveTracker[[#This Row],[تاريخ النهاية]],lstHolidays)","v":3}]
[null,"الموظف 4",{"$f":"DATE(YEAR(TODAY())-1,12,1  )","v":"2017-12-01"},{"$f":"DATE(YEAR(TODAY())-1,12,6)","v":"2017-12-06"},"أخرى",{"$f":"NETWORKDAYS(LeaveTracker[[#This Row],[تاريخ البداية]],LeaveTracker[[#This Row],[تاريخ النهاية]],lstHolidays)","v":4}]
[null,"الموظف 4",{"$f":"DATE(YEAR(TODAY())-1,12,10  )","v":"2017-12-10"},{"$f":"DATE(YEAR(TODAY())-1,12,16)","v":"2017-12-16"},"أخرى",{"$f":"NETWORKDAYS(LeaveTracker[[#This Row],[تاريخ البداية]],LeaveTracker[[#This Row],[تاريخ النهاية]],lstHolidays)","v":5}]
[null,"الموظف 2",{"$f":"DATE(YEAR(TODAY()),1,13 )","v":"2018-01-13"},{"$f":"DATE(YEAR(TODAY()),1,15)","v":"2018-01-15"},"غياب",{"$f":"NETWORKDAYS(LeaveTracker[[#This Row],[تاريخ البداية]],LeaveTracker[[#This Row],[تاريخ النهاية]],lstHolidays)","v":1}]
[null,"الموظف 5",{"$f":"DATE(YEAR(TODAY()),1,15 )","v":"2018-01-15"},{"$f":"DATE(YEAR(TODAY()),1,20)","v":"2018-01-20"},"إجازة مرضية",{"$f":"NETWORKDAYS(LeaveTracker[[#This Row],[تاريخ البداية]],LeaveTracker[[#This Row],[تاريخ النهاية]],lstHolidays)","v":5}]
[null,"الموظف 2",{"$f":"DATE(YEAR(TODAY()),6,13 )","v":"2018-06-13"},{"$f":"DATE(YEAR(TODAY()),6,15)","v":"2018-06-15"},"تبديل",{"$f":"NETWORKDAYS(LeaveTracker[[#This Row],[تاريخ البداية]],LeaveTracker[[#This Row],[تاريخ النهاية]],lstHolidays)","v":3}]
[null,"الموظف 5",{"$f":"DATE(YEAR(TODAY()),1,27 )","v":"2018-01-27"},{"$f":"DATE(YEAR(TODAY()),2,3)","v":"2018-02-03"},"حداد",{"$f":"NETWORKDAYS(LeaveTracker[[#This Row],[تاريخ البداية]],LeaveTracker[[#This Row],[تاريخ النهاية]],lstHolidays)","v":5}]
[null,"الموظف 3",{"$f":"DATE(YEAR(TODAY()),1,17 )","v":"2018-01-17"},{"$f":"DATE(YEAR(TODAY()),1,18)","v":"2018-01-18"},"العطلة",{"$f":"NETWORKDAYS(LeaveTracker[[#This Row],[تاريخ البداية]],LeaveTracker[[#This Row],[تاريخ النهاية]],lstHolidays)","v":2}]
[null,"الموظف 3",{"$f":"DATE(YEAR(TODAY())-1,12,12 )","v":"2017-12-12"},{"$f":"DATE(YEAR(TODAY())-1,12,17)","v":"2017-12-17"},"حداد",{"$f":"NETWORKDAYS(LeaveTracker[[#This Row],[تاريخ البداية]],LeaveTracker[[#This Row],[تاريخ النهاية]],lstHolidays)","v":4}]
[null,"الموظف 1",{"$f":"DATE(YEAR(TODAY())-1,12,21  )","v":"2017-12-21"},{"$f":"DATE(YEAR(TODAY())-1,12,22)","v":"2017-12-22"},"أخرى",{"$f":"NETWORKDAYS(LeaveTracker[[#This Row],[تاريخ البداية]],LeaveTracker[[#This Row],[تاريخ النهاية]],lstHolidays)","v":2}]
[null,"الموظف 1",{"$f":"DATE(YEAR(TODAY())-1,12,14  )","v":"2017-12-14"},{"$f":"DATE(YEAR(TODAY())-1,12,16)","v":"2017-12-16"},"العطلة",{"$f":"NETWORKDAYS(LeaveTracker[[#This Row],[تاريخ البداية]],LeaveTracker[[#This Row],[تاريخ النهاية]],lstHolidays)","v":2}]
[null,"الموظف 2",{"$f":"DATE(YEAR(TODAY())-1,11,29  )","v":"2017-11-29"},{"$f":"DATE(YEAR(TODAY())-1,12,6)","v":"2017-12-06"},"استثناء",{"$f":"NETWORKDAYS(LeaveTracker[[#This Row],[تاريخ البداية]],LeaveTracker[[#This Row],[تاريخ النهاية]],lstHolidays)","v":6}]
[null,"الموظف 5",{"$f":"DATE(YEAR(TODAY())-1,12,3  )","v":"2017-12-03"},{"$f":"DATE(YEAR(TODAY())-1,12,7)","v":"2017-12-07"},"العطلة",{"$f":"NETWORKDAYS(LeaveTracker[[#This Row],[تاريخ البداية]],LeaveTracker[[#This Row],[تاريخ النهاية]],lstHolidays)","v":4}]
[null,"الموظف 1",{"$f":"DATE(YEAR(TODAY()),1,31 )","v":"2018-01-31"},{"$f":"DATE(YEAR(TODAY()),2,2)","v":"2018-02-02"},"حداد",{"$f":"NETWORKDAYS(LeaveTracker[[#This Row],[تاريخ البداية]],LeaveTracker[[#This Row],[تاريخ النهاية]],lstHolidays)","v":3}]
[null,"الموظف 1",{"$f":"DATE(YEAR(TODAY())-1,11,24 )","v":"2017-11-24"},{"$f":"DATE(YEAR(TODAY())-1,11,29)","v":"2017-11-29"},"إجازة مرضية",{"$f":"NETWORKDAYS(LeaveTracker[[#This Row],[تاريخ البداية]],LeaveTracker[[#This Row],[تاريخ النهاية]],lstHolidays)","v":4}]
[null,"الموظف 2",{"$f":"DATE(YEAR(TODAY()),12,5 )","v":"2018-12-05"},{"$f":"DATE(YEAR(TODAY()),12,9)","v":"2018-12-09"},"العطلة",{"$f":"NETWORKDAYS(LeaveTracker[[#This Row],[تاريخ البداية]],LeaveTracker[[#This Row],[تاريخ النهاية]],lstHolidays)","v":3}]
[null,"الموظف 5",{"$f":"DATE(YEAR(TODAY()),4,11 )","v":"2018-04-11"},{"$f":"DATE(YEAR(TODAY()),4,19)","v":"2018-04-19"},"العطلة",{"$f":"NETWORKDAYS(LeaveTracker[[#This Row],[تاريخ البداية]],LeaveTracker[[#This Row],[تاريخ النهاية]],lstHolidays)","v":7}]

{"sheet":"قائمة الموظفين","index":2,"n_rows":8,"n_cols":2,"rows_kept":8,"cut":false,"hidden":true,"merged":[]}
[null,"قائمة الموظفين"]
[]
[null,"أسماء الموظفين"]
[null,"الموظف 1"]
[null,"الموظف 2"]
[null,"الموظف 3"]
[null,"الموظف 4"]
[null,"الموظف 5"]

{"sheet":"أنواع الإجازات","index":3,"n_rows":13,"n_cols":2,"rows_kept":13,"cut":false,"hidden":true,"merged":[]}
[null,"أنواع الإجازات"]
[]
[null,"قائمة أنواع الإجازات"]
[null,"إجازة مرضية"]
[null,"إجازة عادية"]
[null,"حداد"]
[null,"غياب"]
[null,"تأخير"]
[null,"استئذان"]
[null,"مرافق"]
[null,"استثناء"]
[null,"طارئة"]
[null,"تبديل"]

{"sheet":"عطلات الشركة","index":4,"n_rows":7,"n_cols":3,"rows_kept":7,"cut":false,"hidden":true,"merged":[]}
[null,"عطلات الشركة"]
[]
[null,"عطلات الشركة","الوصف"]
[null,{"$f":"DATE(YEAR(TODAY()),11,24)","v":"2018-11-24"},"عيد الفطر"]
[null,{"$f":"DATE(YEAR(TODAY()),11,25)","v":"2018-11-25"},"عيد الفطر"]
[null,{"$f":"DATE(YEAR(TODAY()),12,24)","v":"2018-12-24"},"عيد الأضحى"]
[null,{"$f":"DATE(YEAR(TODAY()),12,25)","v":"2018-12-25"},"عيد الأضحى"]